{"text_format":"1","workbook":"xlsx","n_sheets":4,"sheets":["Начало","Задание 1","Задание 2","Результат"],"not_rendered":{"charts":0,"images":13,"macros":1,"external_links":0,"defined_names":0,"comments":2,"pivot_tables":0},"unopened":[],"bounds":{"document_bytes":16777216,"sheet_cells":100000,"rows_first":2000,"rows_last":500,"rows_between":2000,"halvings":0,"cell_chars":16384,"cell_head_chars":4096},"cells_cut":0,"cells_raw":0,"read":"whole","date_system":"1900"}

{"sheet":"Начало","index":0,"n_rows":10,"n_cols":6,"rows_kept":10,"cut":false,"hidden":false,"merged":[[7,5,7,7],[9,3,9,11],[1,1,1,4],[1,5,1,8],[3,3,3,4]]}
[]
[null,"Фамилия, имя:"]
[]
[null,null,null,"Класс:"]
[]
[]
[]
[null,null,null,null,null,"Тест"]
[]
[null,"Тема:"]

{"sheet":"Задание 1","index":1,"n_rows":63,"n_cols":11,"rows_kept":63,"cut":false,"hidden":false,"merged":[[13,0,18,1],[14,2,14,3],[20,0,21,6],[23,2,23,3],[4,0,9,1],[59,0,60,6],[62,3,62,4],[0,1,0,7],[2,0,3,6],[5,2,5,3],[11,0,12,6],[53,2,53,3],[22,0,28,1],[30,0,31,6],[33,2,33,3],[40,0,41,6],[43,2,43,3],[50,0,51,6],[5,5,5,6],[14,5,14,6]]}
[null,"Задания 1 уровня На всех чертежах О-центр окружности"]
[]
["Задание 1. Точка О - центр окружности , ∠AOB = 84° . Найдите ∠ACB"]
[]
[]
[null,null,"Введите ответ",null,50,"ПОДСКАЗКА",null,null,null,null,{"$f":"IF(E6=42,1,0)","v":0}]
[]
[]
[]
[]
[]
["Задание 2. Треугольник ABC вписан в окружность с центром в точке O. Найдите градусную меру угла AOB , если угол AСB равен 24°."]
[]
[]
[null,null,"Введите ответ",null,null,"ПОДСКАЗКА",null,null,null,null,{"$f":"IF(E15=48,1,0)","v":0}]
[]
[]
[]
[]
[]
["Задание 3. Центральный угол AOB опирается на хорду AB длиной 6. При этом угол OAB равен 60°. Найдите радиус окружности."]
[]
[]
[null,null,"Введите ответ",null,null,null,null,null,null,null,{"$f":"IF(E24=6,1,0)","v":0}]
[]
[]
[]
[]
[]
[]
["Задание 4. Найдите ∠DEF, если градусные меры дуг DE и EF равны 150° и 68° соответственно."]
[]
[]
[null,null,"Введите ответ",null,null,null,null,null,null,null,{"$f":"IF(E34=71,1,0)","v":0}]
[]
[]
[]
[]
[]
[]
["Задание 5. Найдите угол ACB , если О - центр окружности"]
[]
[]
[null,null,"Введите ответ",null,null,null,null,null,null,null,{"$f":"IF(E44=90,1,0)","v":0}]
[]
[]
[]
[]
[]
[]
["Задание 6.Величина центрального угла AOD равна 110°. Найдите величину вписанного угла ACB. Ответ дайте в градусах."]
[]
[]
[null,null,"Введите ответ",null,null,null,null,null,null,null,{"$f":"IF(E54=35,1,0)","v":0}]
[]
[]
[]
[]
[]
["Задание 7.Найдите ∠KNM, если известно, что градусная мера дуги MN равна 124°, а градусная мера дуги KN равна 180°."]
[]
[]
[null,null,null,"Введите ответ",null,null,null,null,null,null,{"$f":"IF(F63=56,1,0)","v":0}]

{"sheet":"Задание 2","index":2,"n_rows":45,"n_cols":10,"rows_kept":45,"cut":false,"hidden":false,"merged":[[0,1,0,7],[44,2,44,3],[2,0,3,6],[4,0,9,1],[5,2,5,3],[5,5,5,6],[11,0,12,6],[13,0,19,1],[14,2,14,3],[21,0,22,6],[24,2,24,3],[31,0,32,6],[34,2,34,3],[41,0,42,6]]}
[null,"Задания 2 уровня На всех чертежах О-центр окружности"]
[]
["Задание 1. Угол АСВ на 380 меньше угла АОВ. Найдите сумму углов АОВ и АСВ"]
[]
[]
[null,null,"Введите ответ",null,null,"ПОДСКАЗКА",null,null,null,{"$f":"IF(E6=114,1,0)","v":0}]
[]
[]
[]
[]
[]
["Задание 2. МР – диаметр, О – центр окружности. ОМ=ОК=МК. Найдите угол МРК "]
[]
[]
[null,null,"Введите ответ",null,null,null,null,null,null,{"$f":"IF(E15=30,1,0)","v":0}]
[]
[]
[]
[]
[]
[]
["Задание 3. Угол АВС вписанный, угол АОС – центральный. Найдите угол АВС, если угол АОС=1260"]
[]
[]
[null,null,"Введите ответ",null,null,null,null,null,null,{"$f":"IF(E25=117,1,0)","v":0}]
[]
[]
[]
[]
[]
[]
["Задание 4.KL – диаметр окружности, О – ее центр. КО=ОМ=КМ. Найдите угол ОМL. "]
[]
[]
[null,null,"Введите ответ",null,null,null,null,null,null,{"$f":"IF(E35=30,1,0)","v":0}]
[]
[]
[]
[]
[]
[]
["Задание 5.Угол EOD – центральный, угол EFD – вписанный, найдите угол EOD, если угол EFD=930."]
[]
[]
[null,null,"Введите ответ",null,null,null,null,null,null,{"$f":"IF(E45=174,1,0)","v":0}]

{"sheet":"Результат","index":3,"n_rows":21,"n_cols":13,"rows_kept":21,"cut":false,"hidden":false,"merged":[[1,1,1,4],[1,5,1,8],[3,3,3,4],[7,3,7,8],[20,2,20,7],[10,1,11,4],[10,5,10,11],[12,3,12,4],[13,3,13,4],[14,3,14,4],[16,3,16,4],[18,2,18,3]]}
[]
[null,"Фамилия, имя:",null,null,null,{"$f":"CONCATENATE(Начало!F2)","v":""}]
[]
[null,null,null,"Класс:",null,{"$f":"CONCATENATE(Начало!F4)","v":""}]
[]
[]
[]
[null,null,"Тема:",{"$f":"CONCATENATE(Начало!D10)","v":""}]
[]
[]
[null,null,null,null,null,"Баллы"]
[null,null,null,null,null,1,2,3,4,5,6,7]
[null,"Задание 1",0,"из 7 ",null,{"$f":"IF('Задание 1'!K6=1,1,0)","v":0},{"$f":"IF('Задание 1'!K15=1,1,0)","v":0},{"$f":"IF('Задание 1'!K24=1,1,0)","v":0},{"$f":"IF('Задание 1'!K34=1,1,0)","v":0},{"$f":"IF('Задание 1'!K44=1,1,0)","v":0},{"$f":"IF('Задание 1'!K54=1,1,0)","v":0},{"$f":"IF('Задание 1'!K63=1,1,0)","v":0},{"$f":"SUM(F13:L13)","v":0}]
[null,"Задание 2",0,"из 5 ",null,{"$f":"IF('Задание 2'!J6=1,1,0)","v":0},{"$f":"IF('Задание 2'!J15=1,1,0)","v":0},{"$f":"IF('Задание 2'!J25=1,1,0)","v":0},{"$f":"IF('Задание 2'!J35=1,1,0)","v":0},{"$f":"IF('Задание 2'!J45=1,1,0)","v":0},null,null,{"$f":"SUM(F14:L14)","v":0}]
[null,null,null,null,null,null,null,null,null,null,null,null,{"$f":"SUM(M13:M14)","v":0}]
[]
[null,"Итого:",{"$f":"M15","v":0},"из 12 "]
[]
[null,"Оценка:",{"$f":"IF(C17<4,\"Еще позанимайся\",IF(M15<=7,\"Удовлетворительно!\",IF(C17<=10,\"Хорошо!\",\"Отлично!\")))","v":"Еще позанимайся"}]
[]
[null,null,"Закрыть программу без сохранения"]